bitfinex/quotes_SOLUSD_20260311
["timestamp","ask_amount","ask_price","bid_price","bid_amount"]
[1773243013557,2.52180588,85.42,85.39,7.65287861]
[1773243013771,7.65287861,85.43,85.4,7.65287861]
[1773243013973,7.65287861,85.44,85.401,3.76411963]
[1773243014268,7.65287861,85.43,85.382,3.76411963]
[1773243014477,2.51401297,85.419,85.383,11.71193328]
[1773243014681,2.51401297,85.419,85.375,3.76411963]
[1773243014682,7.65287861,85.41,85.378,3.76411963]
[1773243014979,2.51401297,85.419,85.38,11.41699824]
[1773243015379,2.50632583,85.44,85.401,3.76411963]
[1773243015550,46.79543654,85.479,85.381,1.17122076]
[1773243015551,2.50632583,85.429,85.389,3.76411963]
[1773243015754,7.65287861,85.41,85.377,3.76411963]
[1773243015955,7.65287861,85.4,85.375,11.71301375]
[1773243016257,2.49871892,85.409,85.37,11.41699824]
[1773243016459,2.49871892,85.407,85.372,11.71344234]
[1773243016676,7.65287861,85.4,85.372,11.71344234]
[1773243016856,3.04,85.433,85.359,3.76411963]
[1773243016857,7.65287861,85.39,85.36,11.71508903]
[1773243017056,2.49871892,85.399,85.36,48.65569022]
[1773243017461,7.65287861,85.38,85.349,11.7165989]
[1773243017671,2.49122384,85.389,85.35,7.65287861]
[1773243018277,2.49122384,85.389,85.35,3.76411963]
[1773243018477,2.49122384,85.389,85.351,41.00713523]
[1773243018672,2.48382175,85.369,85.342,11.71755993]
[1773243018858,1.48438748,85.349,85.315,11.72114319]
[1773243019175,152.24621724,85.388,85.283,11.72563287]
[1773243019176,1.48438748,85.319,85.283,11.72563287]
[1773243019371,1.48438748,85.319,85.257,3.76411963]
[1773243019372,7.65287861,85.3,85.257,3.76411963]
[1773243019591,7.65287861,85.33,85.291,3.76411963]
[1773243019955,7.65287861,85.32,85.28,7.65287861]
[1773243020157,7.65287861,85.31,85.28,7.65287861]
[1773243020358,3.04,85.353,85.28,7.65287861]
[1773243020559,7.65287861,85.34,85.301,3.75780626]
[1773243020759,0.47361063,85.351,85.31,11.41068487]
[1773243020967,7.65287861,85.35,85.311,3.75780626]
[1773243021167,0.46803561,85.361,85.311,3.75780626]
[1773243021358,19.36796764,85.36,85.32,7.65287861]
[1773243021559,19.36796764,85.36,85.3,7.65287861]
[1773243021560,0.46803561,85.35,85.3,7.65287861]
[1773243021765,19.36796764,85.36,85.321,3.75780626]
[1773243021962,11.71303074,85.375,85.34,7.65287861]
[1773243022177,7.65287861,85.37,85.331,3.75780626]
[1773243022364,0.46251442,85.339,85.3,7.65287861]
[1773243022565,134.69985356,85.375,85.282,1.17258038]
[1773243022566,7.65287861,85.32,85.282,3.75780626]
[1773243022882,41.01338207,85.338,85.275,15.484453]
[1773243022883,7.65287861,85.31,85.275,15.484453]
[1773243023061,134.75825539,85.338,85.273,15.12270195]
[1773243023062,0.45709692,85.299,85.273,15.12270195]
[1773243023261,7.65287861,85.28,85.273,1e-08]
[1773243023466,7.65287861,85.28,85.242,11.73123337]
[1773243023661,7.65287861,85.28,85.215,46.94005102]
[1773243023662,4.82477569,85.305,85.224,3.98635472]
[1773243023873,7.70577757,85.25,85.21,7.70577757]
[1773243024068,7.70577757,85.25,85.234,1e-08]
[1773243024469,11.73171904,85.239,85.201,11.73695144]
[1773243024676,7.70577757,85.23,85.201,11.73695144]
[1773243024879,4.82477569,85.263,85.201,11.73695144]
[1773243024880,7.70577757,85.25,85.21,7.70577757]
[1773243025184,7.70577757,85.26,85.221,3.98635472]
[1773243025578,7.70577757,85.27,85.231,3.98635472]
[1773243026080,39.35870436,85.427,85.26,7.70577757]
[1773243026081,7.70577757,85.3,85.26,7.70577757]
[1773243026389,7.70577757,85.32,85.28,7.70577757]
[1773243026569,7.70577757,85.31,85.271,3.98635472]
[1773243026762,18.95854081,85.308,85.276,11.72660383]
[1773243026988,7.23629176,85.308,85.276,11.72660383]
[1773243027167,7.23629176,85.308,85.281,3.98635472]
[1773243027362,7.23629176,85.308,85.271,11.72727308]
[1773243027363,18.95860097,85.308,85.271,11.72727308]
[1773243027674,18.95854757,85.308,85.28,7.70577757]
[1773243027887,18.95854757,85.308,85.271,11.72727308]
[1773243028266,7.70577757,85.3,85.271,11.72727308]
[1773243028466,7.23629176,85.308,85.28,7.70577757]
[1773243028686,11.72236744,85.307,85.274,3.98635472]
[1773243028984,4.58858637,85.308,85.28,7.70577757]
[1773243029186,4.58858637,85.308,85.274,3.98635472]
[1773243029386,11.72236744,85.307,85.274,3.98635472]
[1773243029565,7.70577757,85.28,85.202,164.31539162]
[1773243029766,3.8088581,85.285,85.25,7.70577757]
[1773243030387,3.8088581,85.299,85.26,7.70577757]
[1773243030592,7.70577757,85.28,85.24,7.70577757]
[1773243030883,4.58858637,85.308,85.26,7.70577757]
[1773243030884,7.70577757,85.3,85.26,7.70577757]
[1773243031273,4.58858637,85.308,85.28,7.70577757]
[1773243031474,3.8088581,85.325,85.28,7.70577757]
[1773243031789,11.71797185,85.339,85.301,3.68754959]
[1773243031987,11.71797185,85.339,85.28,7.70577757]
[1773243031988,7.70577757,85.31,85.28,7.70577757]
[1773243032298,3.8088581,85.309,85.27,7.70577757]
[1773243032469,11.72223003,85.308,85.271,11.72731643]
[1773243032670,7.70577757,85.28,85.25,3.68754959]
[1773243032872,3.8088581,85.269,85.241,11.73144378]
[1773243033082,3.8088581,85.249,85.208,11.73598723]
[1773243033391,7.70577757,85.24,85.208,11.73598723]
[1773243033591,7.70577757,85.23,85.203,11.73667411]
[1773243033773,3.8088581,85.249,85.203,11.73667411]
[1773243033970,7.70577757,85.24,85.203,11.73667411]
[1773243034184,7.70577757,85.24,85.2,7.80577757]
[1773243034185,7.70577757,85.23,85.2,0.1]
[1773243034391,7.70577757,85.23,85.201,11.73695144]
[1773243034589,7.70577757,85.23,85.2,0.1]
[1773243034967,15.53741243,85.262,85.201,3.68754959]
[1773243035173,3.8088581,85.261,85.211,3.68754959]
[1773243035393,7.70577757,85.22,85.2,0.1]
[1773243035600,7.70577757,85.21,85.2,0.1]
[1773243035805,7.70577757,85.22,85.2,0.1]
[1773243036094,7.70577757,85.23,85.2,0.1]
[1773243036276,7.70577757,85.22,85.2,0.1]
[1773243036590,7.70577757,85.22,85.158,1.17428779]
[1773243036591,7.70577757,85.21,85.167,3.68754959]
[1773243036789,7.70577757,85.21,85.17,7.70577757]
[1773243037003,7.24054308,85.258,85.201,3.68754959]
[1773243037171,7.24054308,85.258,85.2,7.70577757]
[1773243037172,11.72989754,85.253,85.21,7.70577757]
[1773243037372,7.70577757,85.25,85.21,7.70577757]
[1773243037574,7.70577757,85.25,85.22,7.70577757]
[1773243037773,7.70577757,85.23,85.163,1.17421885]
[1773243037990,7.70577757,85.23,85.19,7.70577757]
[1773243038490,7.70577757,85.24,85.2,7.70577757]
[1773243039076,7.70577757,85.24,85.201,3.68754959]
[1773243039476,7.70577757,85.24,85.171,147.9376783]
[1773243039477,18.96965439,85.258,85.221,3.68754959]
[1773243039891,7.24054308,85.258,85.23,7.70577757]
[1773243040091,7.24054308,85.258,85.217,3.85133293]
[1773243040282,7.24054308,85.258,85.206,3.85133293]
[1773243040283,7.70577757,85.24,85.206,3.85133293]
[1773243040484,7.70577757,85.24,85.201,3.85133293]
[1773243040697,11.73171904,85.239,85.202,11.73681368]
[1773243040904,11.73171904,85.239,85.202,15.58814661]
[1773243041216,11.73171904,85.239,85.21,7.70577757]
[1773243041798,11.73171904,85.239,85.203,3.85133293]
[1773243041985,3.63813895,85.238,85.191,3.85133293]
[1773243042192,11.73171904,85.239,85.201,3.85133293]
[1773243042898,11.34391652,85.25,85.211,3.85133293]
[1773243043080,7.70577757,85.24,85.202,11.73681368]
[1773243043275,3.63813895,85.239,85.202,11.73681368]
[1773243043508,3.63813895,85.229,85.194,11.73789166]
[1773243043796,41.05620006,85.249,85.163,11.7421885]
[1773243043797,3.63813895,85.199,85.163,11.7421885]
[1773243044007,3.63813895,85.199,85.163,41.09765977]
[1773243044410,3.06,85.22,85.163,11.7421885]
[1773243044411,7.70577757,85.19,85.163,11.7421885]
[1773243044613,7.70577757,85.18,85.152,11.74370537]
[1773243044791,3.06,85.22,85.126,1.17472922]
[1773243044792,7.70577757,85.16,85.131,11.74660229]
[1773243044994,7.70577757,85.16,85.103,2.92]
[1773243044995,7.70577757,85.14,85.114,3.85133293]
[1773243045182,7.70577757,85.14,85.1,11.5571105]
[1773243045382,11.34391652,85.15,85.11,7.70577757]
[1773243045597,11.34391652,85.15,85.111,3.85133293]
[1773243045816,3.63813895,85.164,85.13,7.70577757]
[1773243046103,3.63813895,85.164,85.091,182.15792502]
[1773243046104,7.70577757,85.15,85.113,3.85133293]
[1773243046286,3.63813895,85.159,85.113,3.85133293]
[1773243046483,3.63813895,85.159,85.121,3.85133293]
[1773243046684,11.73998285,85.179,85.133,3.85133293]
[1773243046917,11.73998285,85.179,85.14,11.5571105]
[1773243047083,7.70577757,85.17,85.14,3.85133293]
[1773243047283,7.70577757,85.17,85.114,2.92]
[1773243047284,3.63813895,85.169,85.127,3.85133293]
[1773243047479,41.08801051,85.183,85.094,3.85133293]
[1773243047480,7.70577757,85.14,85.094,3.85133293]
[1773243047684,3.63813895,85.16,85.08,3.85133293]
[1773243047685,7.70577757,85.13,85.08,3.85133293]
[1773243047894,7.70577757,85.13,85.07,0.1]
[1773243047895,3.06,85.132,85.071,11.75488709]
[1773243048099,7.70577757,85.12,85.081,3.85133293]
[1773243048290,7.70577757,85.12,85.08,7.70577757]
[1773243048291,7.70577757,85.1,85.071,11.75488709]
[1773243048699,11.7510194,85.099,85.07,0.1]
[1773243048925,11.7510194,85.099,85.061,15.84101233]
[1773243048926,7.70577757,85.09,85.061,15.84101233]
[1773243049408,7.70577757,85.08,85.061,15.84101233]
[1773243049703,7.70577757,85.11,85.071,3.89217638]
[1773243049914,3.85839027,85.122,85.081,3.89217638]
[1773243049915,7.70577757,85.12,85.081,3.89217638]
[1773243050206,3.85839027,85.109,85.062,11.75613082]
[1773243050388,41.11793799,85.121,85.061,4.99425869]
[1773243050389,3.85839027,85.101,85.061,4.99425869]
[1773243050588,7.70577757,85.09,85.061,4.99425869]
[1773243050800,19.45812199,85.09,85.061,4.99425869]
[1773243051002,7.70577757,85.07,85.031,3.89217638]
[1773243051213,7.70577757,85.08,85.041,3.89217638]
[1773243051387,1.59889686,85.089,85.05,7.70577757]
[1773243051807,1.59889686,85.089,85.041,3.89217638]
[1773243052111,3.85839027,85.089,85.05,7.70577757]
[1773243052419,19.45665888,85.1,85.061,3.89217638]
[1773243052713,3.85839027,85.108,85.07,7.70577757]
[1773243052901,7.70577757,85.1,85.061,3.89217638]
[1773243053097,3.85839027,85.099,85.06,7.70577757]
[1773243053413,3.85839027,85.089,85.05,7.70577757]
[1773243053703,3.85839027,85.102,85.055,3.89217638]
[1773243053887,3.85839027,85.099,85.06,7.70577757]
[1773243054285,15.60743327,85.114,85.08,7.70577757]
[1773243054489,11.749043,85.114,85.08,7.70577757]
[1773243054696,11.749043,85.114,85.081,11.75350548]
[1773243055210,3.85839027,85.115,85.081,11.75350548]
[1773243055507,46.95762677,85.184,85.054,94.05697026]
[1773243055508,3.85839027,85.119,85.076,11.75410326]
[1773243056004,3.85839027,85.119,85.08,7.70577757]
[1773243056185,11.74778429,85.123,85.09,7.70577757]
[1773243056586,3.85839027,85.119,85.08,7.70577757]
[1773243056806,3.85839027,85.119,85.069,3.89217638]
[1773243056807,13.83643795,85.14,85.101,3.89217638]
[1773243057012,11.74549853,85.139,85.101,3.89217638]
[1773243057192,11.74549853,85.139,85.091,3.89217638]
[1773243057193,3.85839027,85.138,85.091,3.89217638]
[1773243057393,7.70577757,85.13,85.091,3.89217638]
[1773243057591,3.85839027,85.119,85.076,11.75410601]
[1773243057889,3.85839027,85.119,85.071,11.75484241]
[1773243057890,7.70577757,85.11,85.071,11.75484241]
[1773243058116,3.85839027,85.119,85.072,3.89217638]
[1773243058294,3.85839027,85.119,85.08,7.70577757]
[1773243058933,41.10924487,85.139,85.05,7.70577757]
[1773243058934,11.74687826,85.129,85.091,3.89217638]
[1773243059442,3.85839027,85.128,85.081,11.75350548]
[1773243059741,11.74687826,85.129,85.101,3.89217638]
[1773243060322,3.85839027,85.128,85.09,7.70577757]
[1773243060534,11.74687826,85.129,85.075,3.89217638]
[1773243060725,11.74977675,85.108,85.062,3.89217638]
[1773243060929,7.70577757,85.1,85.063,11.75599261]
[1773243061140,3.85839027,85.107,85.07,7.70577757]
[1773243061437,3.85839027,85.099,85.052,3.89217638]
[1773243061639,41.12421863,85.108,85.041,3.89217638]
[1773243061640,7.70577757,85.08,85.041,3.89217638]
[1773243061818,3.08,85.098,85.061,3.89217638]
[1773243062014,11.74977675,85.108,85.04,48.86281902]
[1773243062015,7.70577757,85.08,85.04,48.86281902]
[1773243062344,7.70577757,85.07,85.031,11.76028474]
[1773243062523,3.08,85.085,85.04,7.70577757]
[1773243062524,7.70577757,85.08,85.04,7.70577757]
[1773243062723,3.85839027,85.079,85.04,7.70577757]
[1773243062918,3.85839027,85.069,85.014,1.17627684]
[1773243063237,3.85839027,85.069,85.03,7.70577757]
[1773243063943,3.85839027,85.069,85.0,1.17647058]
[1773243063944,7.70577757,85.04,85.0,7.70577757]
[1773243064149,3.85839027,85.049,85.0,3.89217638]
[1773243064150,7.70577757,85.03,85.0,3.89217638]
[1773243064316,3.85839027,85.039,85.0,3.89217638]
[1773243064524,3.85839027,85.039,85.0,11.59795395]
[1773243064823,3.85839027,85.037,85.001,11.76456747]
[1773243065037,3.85839027,85.037,85.001,41.17598615]
[1773243065240,3.85839027,85.037,85.001,11.76456747]
[1773243065739,7.70577757,85.06,85.021,3.89217638]
[1773243065945,1.59889686,85.059,85.01,7.70577757]
[1773243066161,3.85839027,85.039,84.992,11.76581325]
[1773243066366,3.85839027,85.03,85.0,7.70577757]
[1773243066564,6.93839027,85.041,85.0,7.70577757]
[1773243066736,3.85839027,85.039,84.99,41.18131544]
[1773243066941,3.85839027,85.039,84.969,1.17689981]
[1773243066942,41.1580705,85.038,85.001,3.89217638]
[1773243067157,3.85839027,85.037,85.0,7.70577757]
[1773243067457,41.0405405,85.038,85.0,7.70577757]
[1773243067458,11.64191871,85.038,85.001,3.89217638]
[1773243067757,41.0405405,85.038,85.001,3.89217638]
[1773243067958,3.08,85.049,85.01,7.70577757]
[1773243068160,7.70577757,85.05,85.01,7.70577757]
[1773243068659,7.70577757,85.05,85.001,3.89217638]
[1773243068840,7.70577757,85.04,85.001,3.89217638]
[1773243069041,7.70577757,85.05,85.003,3.89217638]
[1773243069341,47.01844298,85.073,85.002,41.17550175]
[1773243069342,7.70577757,85.06,85.021,3.89217638]
[1773243069555,7.70577757,85.05,85.011,3.89217638]
[1773243070160,3.85839027,85.059,85.02,7.70577757]
[1773243070353,3.85839027,85.059,85.021,3.89217638]
[1773243070566,7.70577757,85.08,85.031,3.89217638]
[1773243070873,7.70577757,85.08,85.002,241.17079595]
[1773243070874,11.75240042,85.089,85.041,3.89217638]
[1773243071047,11.75240042,85.089,85.04,7.70577757]
[1773243071048,7.70577757,85.08,85.05,3.89217638]
[1773243071249,7.70577757,85.07,85.038,3.89217638]
[1773243071444,3.85839027,85.049,85.004,3.89217638]
[1773243071663,3.85839027,85.049,84.99,29.41512412]
[1773243071664,7.70577757,85.03,84.995,3.89217638]
[1773243072171,3.85839027,85.055,85.001,3.89217638]
[1773243072356,7.70577757,85.03,85.001,3.89217638]
[1773243072747,3.85839027,85.039,84.991,41.1808309]
[1773243072951,7.70577757,85.05,85.013,3.89217638]
[1773243073144,7.70577757,85.08,85.041,3.89217638]
[1773243073461,7.70577757,85.06,85.012,41.17065825]
[1773243073661,7.70577757,85.06,85.001,2.94]
[1773243073662,3.85839027,85.049,85.007,11.76368422]
[1773243073861,3.04,85.079,85.008,3.89217638]
[1773243073862,3.85839027,85.078,85.008,3.89217638]
[1773243074058,7.70577757,85.04,85.008,3.89217638]
[1773243074484,3.85839027,85.049,85.01,11.59795395]
[1773243074648,7.70577757,85.04,85.01,3.89217638]
[1773243075065,3.85839027,85.049,85.012,3.89217638]
[1773243075264,15.61643714,85.049,85.012,3.89217638]
[1773243075466,45.01125659,85.049,85.012,3.89217638]
[1773243075652,11.75739131,85.053,85.012,3.89217638]
[1773243075858,11.75502527,85.07,85.021,3.89217638]
[1773243076060,19.46080284,85.07,85.031,3.89217638]
[1773243076673,7.70577757,85.07,85.031,3.89217638]
[1773243077084,11.75378177,85.079,85.043,3.89217638]
[1773243077253,7.70577757,85.07,85.033,11.76014018]
[1773243077453,7.70577757,85.07,85.034,3.89217638]
[1773243077677,3.85839027,85.078,85.034,3.89217638]
[1773243077852,7.70577757,85.07,85.034,3.89217638]
[1773243078055,3.85839027,85.078,85.034,3.89217638]
[1773243078273,7.70577757,85.07,85.034,3.89217638]
[1773243078459,7.70577757,85.06,85.021,3.89217638]
[1773243078955,7.70577757,85.06,85.023,11.76141084]
[1773243079171,7.70577757,85.05,85.021,3.89217638]
[1773243079571,7.70577757,85.05,85.01,7.70577757]
[1773243079572,3.85839027,85.049,85.01,11.76332196]
[1773243079770,3.85839027,85.049,85.011,3.60681902]
[1773243080071,7.70577757,85.04,85.011,3.60681902]
[1773243080667,7.70577757,85.03,84.996,3.60681902]
[1773243080975,7.70577757,85.03,84.996,15.37204226]
[1773243081165,11.76069341,85.029,84.997,3.60681902]
[1773243081767,7.70577757,85.02,84.987,11.76650477]
[1773243082073,7.70577757,85.02,84.98,7.70577757]
[1773243082074,3.589496,85.009,84.964,3.60681902]
[1773243082278,6.669496,85.009,84.961,3.60681902]
[1773243082479,3.589496,85.009,84.971,3.60681902]
[1773243082664,3.08,85.018,84.971,3.60681902]
[1773243082856,11.75944871,85.038,84.991,3.60681902]
[1773243083177,3.08,85.042,84.991,3.60681902]
[1773243083178,11.76207671,85.019,84.991,3.60681902]
[1773243083358,7.70577757,85.01,84.973,3.60681902]
[1773243083554,7.70577757,85.0,84.973,3.60681902]
[1773243083759,3.589496,84.999,84.963,11.76981185]
[1773243083977,7.70577757,85.0,84.964,3.60681902]
[1773243084182,11.76207671,85.019,84.981,3.60681902]
[1773243084495,3.589496,85.035,84.939,245.04350846]
[1773243084496,7.25578653,85.053,85.011,3.60681902]
[1773243084774,7.25578653,85.053,85.021,3.60681902]
[1773243085108,11.75792778,85.049,85.021,3.60681902]
[1773243085279,11.75792778,85.049,85.01,7.70577757]
[1773243085280,41.15274723,85.049,85.01,7.70577757]
[1773243085583,7.25578653,85.053,85.021,3.60681902]
[1773243085782,7.74544748,85.07,85.031,3.60681902]
[1773243085974,29.38627107,85.074,85.014,3.60681902]
[1773243085975,7.74544748,85.05,85.014,3.60681902]
[1773243087282,7.74544748,85.04,85.016,3.60681902]
[1773243087463,3.589496,85.039,85.0,7.74544748]
[1773243087664,3.589496,85.039,84.979,29.41874429]
[1773243087864,3.589496,85.039,85.01,7.74544748]
[1773243088075,3.589496,85.039,85.0,7.74544748]
[1773243088261,7.74544748,85.04,85.0,7.74544748]
[1773243088460,3.589496,85.048,85.01,7.74544748]
[1773243088884,7.74544748,85.04,85.0,7.74544748]
[1773243089094,3.589496,85.048,85.01,7.74544748]
[1773243089293,3.589496,85.048,84.98,1.17674746]
[1773243089294,3.589496,85.019,84.98,1.17674746]
[1773243089477,3.589496,85.019,84.921,47.10248807]
[1773243089478,7.74544748,85.01,84.971,3.60681902]
[1773243089678,3.589496,85.009,84.971,3.60681902]
[1773243089979,3.589496,84.999,84.96,11.3522665]
[1773243090290,3.69383402,85.044,84.953,3.60681902]
[1773243090291,3.589496,84.989,84.953,3.60681902]
[1773243090482,3.589496,84.989,84.96,7.74544748]
[1773243090993,3.589496,84.989,84.953,3.60681902]
[1773243091198,3.589496,84.987,84.95,7.74544748]
[1773243091893,3.589496,84.987,84.95,11.3522665]
[1773243092086,3.589496,84.987,84.928,2.92]
[1773243092087,7.74544748,84.97,84.939,3.60681902]
[1773243092387,3.589496,84.979,84.941,3.60681902]
[1773243092580,11.33494348,84.96,84.927,3.60681902]
[1773243092780,3.589496,84.959,84.92,7.84544748]
[1773243092983,11.33494348,84.95,84.92,0.1]
[1773243093186,3.589496,84.95,84.92,7.84544748]
[1773243093398,11.77038336,84.959,84.922,3.60681902]
[1773243093595,41.19634176,84.959,84.922,3.60681902]
[1773243094174,61.87813281,84.979,84.92,7.84544748]
[1773243094175,3.04,84.979,84.931,3.60681902]
[1773243094376,3.04,84.979,84.92,0.1]
[1773243094377,7.74544748,84.95,84.92,0.1]
[1773243094600,3.589496,84.958,84.92,0.1]
[1773243094601,3.589496,84.958,84.92,7.84544748]
[1773243094894,3.589496,84.958,84.92,23.22801776]
[1773243095097,7.74544748,84.95,84.92,0.1]
[1773243095280,3.589496,84.927,84.885,3.87662772]
[1773243095479,7.74544748,84.91,84.885,0.2698087]
[1773243096077,7.74544748,84.92,84.887,3.60681902]
[1773243096298,3.589496,84.919,84.885,0.2698087]
[1773243096701,7.74544748,84.92,84.886,3.60681902]
[1773243096996,11.77467972,84.928,84.9,7.74544748]
[1773243097179,11.77467972,84.928,84.901,3.60681902]
[1773243097376,3.589496,84.938,84.901,3.60681902]
[1773243097576,7.74544748,84.93,84.901,3.60681902]
[1773243097804,3.589496,84.938,84.901,3.60681902]
[1773243098000,7.74544748,84.93,84.901,3.60681902]
[1773243098304,3.589496,84.929,84.891,3.60681902]
[1773243098501,7.74544748,84.92,84.891,3.60681902]
[1773243098680,3.589496,84.929,84.892,3.60681902]
[1773243098880,11.33494348,84.93,84.892,3.60681902]
[1773243099080,3.589496,84.929,84.892,3.60681902]
[1773243099504,3.589496,84.941,84.901,3.60681902]
[1773243099687,3.589496,84.952,84.92,7.74544748]
[1773243100198,3.6832193,84.967,84.931,3.59468607]
[1773243100379,3.6832193,84.978,84.941,3.59468607]
[1773243100781,3.6832193,84.978,84.935,3.59468607]
[1773243100782,7.74544748,84.97,84.935,3.59468607]
[1773243101180,3.6832193,84.978,84.94,7.74544748]
[1773243101385,3.6832193,84.969,84.93,7.74544748]
[1773243101604,41.1866461,84.979,84.892,3.59468607]
[1773243101605,3.6832193,84.939,84.892,3.59468607]
[1773243101815,3.6832193,84.939,84.9,11.34013355]
[1773243102183,3.6832193,84.939,84.901,3.59468607]
[1773243103479,3.6832193,84.929,84.89,7.74544748]
[1773243103886,44.88974641,84.938,84.9,7.74544748]
[1773243104088,44.88974641,84.938,84.911,3.59468607]
[1773243104089,11.77329346,84.938,84.911,3.59468607]
[1773243105091,3.6832193,84.929,84.89,7.74544748]
[1773243105317,3.6832193,84.919,84.886,3.59468607]
[1773243105619,11.77606632,84.918,84.886,15.37519168]
[1773243106313,11.77606632,84.918,84.886,3.59468607]
[1773243106314,41.21623212,84.918,84.886,3.59468607]
[1773243107198,7.74544748,84.91,84.886,3.59468607]
[1773243107391,3.6832193,84.918,84.885,0.2698087]
[1773243107596,3.6832193,84.916,84.885,0.2698087]
[1773243107794,11.776205,84.917,84.89,7.74544748]
[1773243108024,11.77481837,84.927,84.9,7.74544748]
[1773243108206,11.77481837,84.927,84.9,3.59468607]
[1773243109107,11.77481837,84.927,84.9,11.34013355]
[1773243109306,11.77357068,84.936,84.901,3.59468607]
[1773243109719,37.17817641,84.94,84.902,3.59468607]
[1773243109898,3.9203964,84.939,84.902,15.37297162]
[1773243110110,3.9203964,84.939,84.903,3.62702415]
[1773243111217,7.74544748,84.93,84.897,11.77891859]
[1773243111392,3.9203964,84.929,84.892,3.62702415]
[1773243111600,3.9203964,84.927,84.892,3.62702415]
[1773243111919,3.9203964,84.927,84.893,11.77953423]
[1773243112619,3.9203964,84.927,84.892,3.62702415]
[1773243112812,3.9203964,84.927,84.893,15.40655838]
[1773243113008,3.9203964,84.927,84.894,3.62702415]
[1773243113522,11.77454108,84.929,84.894,3.62702415]
[1773243113722,11.77454108,84.929,84.896,3.62702415]
[1773243114219,3.9203964,84.928,84.891,11.77975828]
[1773243114402,3.9203964,84.928,84.892,3.62702415]
[1773243115927,41.2118643,84.927,84.893,15.40655838]
[1773243116719,11.77481837,84.927,84.901,3.62702415]
[1773243116927,11.77329346,84.938,84.91,7.74544748]
[1773243117309,11.77329346,84.938,84.9,7.74544748]
[1773243117310,3.9203964,84.937,84.9,7.74544748]
[1773243117519,3.9203964,84.929,84.894,3.62702415]
[1773243117821,11.77467972,84.928,84.9,7.74544748]
[1773243118014,11.77467972,84.928,84.901,3.62702415]
[1773243118218,11.77467972,84.928,84.885,1.44787314]
[1773243118219,3.9203964,84.927,84.886,3.62702415]
[1773243118425,3.9203964,84.927,84.89,7.74544748]
[1773243118724,3.9203964,84.92,84.887,3.62702415]
[1773243119103,3.9203964,84.92,84.891,3.62702415]
[1773243119907,41.21137904,84.928,84.893,3.62702415]
[1773243120232,3.9203964,84.909,84.885,0.2698087]
[1773243120436,3.9203964,84.909,84.84,0.1]
[1773243120437,4.82477569,84.898,84.84,0.1]
[1773243120725,1.17843927,84.908,84.795,11.79312673]
[1773243120726,3.9203964,84.849,84.795,11.79312673]
[1773243120930,3.9203964,84.839,84.793,11.79333145]
[1773243121104,3.9203964,84.839,84.787,11.79417133]
[1773243121303,3.08,84.845,84.78,1.17952347]
[1773243121304,3.9203964,84.829,84.78,1.17952347]
[1773243121626,3.9203964,84.829,84.748,47.19841725]
[1773243121627,7.74544748,84.81,84.77,7.74544748]
[1773243121822,7.74544748,84.81,84.712,47.21845875]
[1773243121823,3.9203964,84.816,84.75,7.74544748]
[1773243122027,11.79161851,84.806,84.77,7.74544748]
[1773243122208,7.74544748,84.8,84.76,7.74544748]
[1773243122605,3.9203964,84.799,84.76,7.74544748]
[1773243123129,3.9203964,84.799,84.719,3.69383402]
[1773243123130,3.9203964,84.769,84.73,11.37247163]
[1773243123438,3.9203964,84.785,84.71,0.2698087]
[1773243123727,3.9203964,84.785,84.648,47.25415216]
[1773243123728,3.9203964,84.719,84.648,3.62702415]
[1773243123927,3.9203964,84.716,84.648,3.62702415]
[1773243124106,3.9203964,84.679,84.621,1.18173975]
[1773243124307,7.74544748,84.69,84.651,3.62702415]
[1773243124526,3.04,84.709,84.661,3.62702415]
[1773243124912,7.74544748,84.7,84.661,3.62702415]
[1773243125118,7.74544748,84.69,84.65,7.74544748]
[1773243125319,7.74544748,84.67,84.628,3.62702415]
[1773243125625,41.31402196,84.717,84.661,3.62702415]
[1773243125930,11.80400627,84.717,84.681,3.62702415]
[1773243126107,7.74544748,84.73,84.681,3.62702415]
[1773243126303,7.74544748,84.73,84.642,2.92]
[1773243126304,3.9203964,84.739,84.682,1.1808885]
[1773243126609,3.9203964,84.739,84.7,7.74544748]
[1773243126811,3.9203964,84.739,84.71,7.74544748]
[1773243127221,3.9203964,84.739,84.667,1.18109771]
[1773243127529,3.9203964,84.739,84.619,47.27019636]
[1773243127530,3.9203964,84.699,84.66,7.74544748]
[1773243127828,3.9203964,84.712,84.64,1.18147448]
[1773243128009,15.72420723,84.719,84.69,7.74544748]
[1773243128201,11.80381083,84.719,84.69,7.74544748]
[1773243128406,3.04,84.737,84.71,7.74544748]
[1773243128716,3.04,84.737,84.671,47.2416598]
[1773243128717,3.9203964,84.719,84.67,7.74544748]
[1773243128910,3.9203964,84.719,84.63,10.66544748]
[1773243128911,11.66584388,84.68,84.638,1.18150239]
[1773243129115,7.74544748,84.67,84.63,7.74544748]
[1773243129315,3.9203964,84.669,84.638,11.81502398]
[1773243129516,3.9203964,84.679,84.65,7.74544748]
[1773243129827,7.74544748,84.84,84.66,7.74544748]
[1773243129828,3.9203964,84.691,84.66,7.74544748]
[1773243130036,3.02,84.713,84.63,7.74544748]